bitfinex/quotes_BTCUSD_20260103
["timestamp","ask_amount","ask_price","bid_price","bid_amount"]
[1767398400451,0.02979954,90016.0,89994.0,0.04848462]
[1767398400632,0.02979954,90016.0,89993.0,0.0001482]
[1767398400834,0.01039849,90015.0,89993.0,0.0001482]
[1767398401056,0.01039849,90014.0,89993.0,0.0001482]
[1767398401260,0.02979954,90016.0,89993.0,0.0001482]
[1767398401261,0.01039849,90013.0,89993.0,0.0001482]
[1767398401515,0.01039849,90012.0,89993.0,0.0001482]
[1767398401800,0.01039849,90011.0,89993.0,0.0001482]
[1767398402103,0.03817318,90010.0,89993.0,0.0001482]
[1767398402256,0.01039849,90009.0,89993.0,0.0001482]
[1767398402447,0.03817379,90008.0,89993.0,0.0001482]
[1767398402681,0.01039849,90007.0,89993.0,0.0001482]
[1767398402885,0.03817441,90006.0,89993.0,0.0001482]
[1767398403095,0.03817472,90005.0,89985.0,5.212e-05]
[1767398403266,0.01039849,90004.0,89985.0,5.212e-05]
[1767398403473,0.03817534,90003.0,89985.0,5.212e-05]
[1767398403648,0.01039849,90002.0,89985.0,5.212e-05]
[1767398403891,0.03757893,90001.0,89985.0,5.212e-05]
[1767398404095,0.01039849,90000.0,89985.0,5.212e-05]
[1767398404297,0.03817657,89999.0,89985.0,5.212e-05]
[1767398404501,0.01039849,89998.0,89985.0,5.212e-05]
[1767398404728,0.0333541,90007.0,89985.0,5.212e-05]
[1767398404729,0.03282881,89997.0,89985.0,5.212e-05]
[1767398404966,0.01039849,89996.0,89986.0,0.04848462]
[1767398405166,0.06595713,89995.0,89986.0,0.04848462]
[1767398405370,0.05555992,89993.0,89988.0,0.04848462]
[1767398405573,0.05555992,89993.0,89987.0,0.01112]
[1767398405774,0.05556251,89989.0,89987.0,0.05960462]
[1767398406107,0.05556234,89989.0,89987.0,0.05960462]
[1767398406525,0.01111234,89990.0,89987.0,0.05960462]
[1767398406943,0.09445388,89991.0,89987.0,0.05960462]
[1767398407139,0.01111234,89990.0,89987.0,0.05960462]
[1767398407880,0.03889277,89991.0,89987.0,0.05960462]
[1767398408244,0.02778055,89991.0,89987.0,0.07071733]
[1767398408437,0.01111197,89993.0,89988.0,0.04848462]
[1767398408668,0.0555571,89998.0,89995.0,0.04848462]
[1767398408669,0.06666845,89998.0,89995.0,0.04848462]
[1767398408868,0.01111148,89997.0,89991.0,0.01111222]
[1767398409077,0.01111148,89997.0,89989.0,0.11515891]
[1767398409078,0.01111148,89997.0,89990.0,0.01111234]
[1767398409276,0.01111148,89997.0,89992.0,0.01111209]
[1767398409645,0.01111111,90000.0,89993.0,0.01111197]
[1767398409850,0.01111123,89999.0,89994.0,0.05960462]
[1767398410188,0.01111123,89999.0,89994.0,0.07071647]
[1767398410485,0.01111135,89998.0,89994.0,0.05960462]
[1767398410686,0.01111123,89999.0,89995.0,0.04848462]
[1767398410890,0.01111135,89998.0,89994.0,0.01112]
[1767398411049,0.01111098,90001.0,89994.0,0.02223185]
[1767398411235,0.01111111,90000.0,89995.0,0.01111172]
[1767398411439,0.06004388,90010.0,89998.0,0.01111135]
[1767398411638,0.01111037,90006.0,90000.0,0.01111111]
[1767398411834,0.01111049,90005.0,89999.0,0.01111123]
[1767398412106,0.01111049,90005.0,89998.0,0.01111135]
[1767398412107,0.01111037,90006.0,90000.0,0.01111111]
[1767398412331,0.01111061,90004.0,90001.0,0.01112]
[1767398416685,0.01111024,90007.0,90001.0,0.0707156]
[1767398417213,0.01111037,90006.0,90001.0,0.0707156]
[1767398417770,0.01111049,90005.0,90001.0,0.010121]
[1767398417978,0.01111061,90004.0,90001.0,0.010121]
[1767398418178,0.01111061,90004.0,90001.0,0.00900964]
[1767398418816,0.01111086,90002.0,89996.0,0.04848462]
[1767398418991,0.01111135,89998.0,89997.0,0.01112]
[1767398419197,0.01111123,89999.0,89997.0,0.01112]
[1767398419395,0.01111086,90002.0,89999.0,0.000999]
[1767398419819,0.01111098,90001.0,89997.0,0.01112]
[1767398420057,0.01111111,90000.0,89997.0,0.01112]
[1767398421309,0.06666722,90000.0,89997.0,0.01112]
[1767398422459,0.05555657,89999.0,89997.0,0.01112]
[1767398424001,0.06666722,90000.0,89997.0,0.01112]
[1767398425525,0.06566822,90000.0,89997.0,0.01112]
[1767398425947,0.0061743,90000.0,89997.0,0.01112]
[1767398427588,0.06667413,89990.0,89982.0,0.01111333]
[1767398427793,0.01111259,89988.0,89983.0,0.01111321]
[1767398427997,0.01111246,89989.0,89986.0,0.01112]
[1767398428196,0.01111234,89990.0,89986.0,0.01112]
[1767398428704,0.01111222,89991.0,89986.0,0.02223283]
[1767398428925,0.01111234,89990.0,89986.0,0.01112]
[1767398429079,0.01111222,89991.0,89986.0,0.02223283]
[1767398429514,0.01111209,89992.0,89987.0,0.01111271]
[1767398429732,0.0111116,89996.0,89988.0,0.01111259]
[1767398429936,0.0111116,89996.0,89990.0,0.01111234]
[1767398430431,0.0111116,89996.0,89991.0,0.01111222]
[1767398430793,0.01111148,89997.0,89992.0,0.01111209]
[1767398430995,0.01111123,89999.0,89993.0,0.01112]
[1767398431198,0.01111111,90000.0,89994.0,0.01111185]
[1767398431392,0.01111111,90000.0,89995.0,0.01111172]
[1767398433223,0.01111135,89998.0,89993.0,0.02223197]
[1767398433533,0.01111123,89999.0,89994.0,0.01111185]
[1767398433741,0.01111135,89998.0,89993.0,0.02223197]
[1767398434690,0.01111135,89998.0,89994.0,0.01111185]
[1767398434885,0.02538531,89999.0,89994.0,0.01111185]
[1767398435090,0.01427408,89999.0,89993.0,0.07779137]
[1767398435814,0.01111098,90001.0,89995.0,0.01111172]
[1767398436381,0.06666402,90004.0,89996.0,0.0111116]
[1767398436580,0.01111098,90001.0,89996.0,0.0111116]
[1767398437181,0.01111086,90002.0,89997.0,0.01111148]
[1767398437381,0.01111098,90001.0,89996.0,0.0111116]
[1767398437597,0.01111098,90001.0,89995.0,0.01111172]
[1767398437598,0.01111111,90000.0,89995.0,0.01111172]
[1767398437804,0.01111098,90001.0,89996.0,0.0111116]
[1767398438045,0.01111086,90002.0,89997.0,0.01111148]
[1767398438446,0.01111074,90003.0,89998.0,0.01111135]
[1767398439255,0.01111086,90002.0,89998.0,0.01111135]
[1767398439457,0.01111086,90002.0,89997.0,0.01111148]
[1767398439458,0.01111074,90003.0,89997.0,0.01111148]
[1767398439740,0.01111074,90003.0,89996.0,0.0111116]
[1767398439741,0.000999,89997.0,89991.0,0.01111222]
[1767398439936,0.000999,89997.0,89993.0,0.02223197]
[1767398440138,0.01111148,89997.0,89993.0,0.01112]
[1767398440339,0.0111116,89996.0,89993.0,0.01112]
[1767398440974,0.0111116,89996.0,89993.0,0.010121]
[1767398441422,0.01111148,89997.0,89993.0,0.010121]
[1767398442710,0.0111116,89996.0,89993.0,0.010121]
[1767398443331,0.06666823,89998.0,89993.0,0.010121]
[1767398443530,0.01111135,89998.0,89996.0,0.000999]
[1767398443707,0.01111123,89999.0,89996.0,0.000999]
[1767398443933,0.01111123,89999.0,89994.0,0.01111185]
[1767398444105,0.01111135,89998.0,89994.0,0.01111185]
[1767398444411,0.01111123,89999.0,89994.0,0.01111185]
[1767398444614,0.05555338,90004.0,89994.0,0.01111185]
[1767398444815,0.01111049,90005.0,90000.0,0.01111111]
[1767398445024,0.01111061,90004.0,90001.0,0.01112]
[1767398445265,0.01111037,90006.0,90001.0,0.02223098]
[1767398445467,0.01111037,90006.0,90001.0,0.01112]
[1767398445676,0.01111049,90005.0,90001.0,0.01112]
[1767398446302,0.01111037,90006.0,90001.0,0.02223098]
[1767398446488,0.01111024,90007.0,90002.0,0.01111086]
[1767398446698,0.01111037,90006.0,90001.0,0.02223098]
[1767398446898,0.01111049,90005.0,90001.0,0.01112]
[1767398447051,0.01111037,90006.0,90001.0,0.02223098]
[1767398447946,0.01111037,90006.0,90001.0,0.02048528]
[1767398448449,0.01111024,90007.0,90002.0,0.01111086]
[1767398448703,0.01111037,90006.0,90001.0,0.02048528]
[1767398448917,0.01111024,90007.0,90002.0,0.01111086]
[1767398449661,0.01111037,90006.0,90001.0,0.02048528]
[1767398449861,0.01111024,90007.0,90001.0,0.02048528]
[1767398450062,0.01111024,90007.0,90002.0,0.01111086]
[1767398451278,0.01111037,90006.0,90001.0,0.02048528]
[1767398451452,0.01111024,90007.0,90002.0,0.01111086]
[1767398451708,0.01111037,90006.0,90001.0,0.02048528]
[1767398451913,0.01111049,90005.0,90001.0,0.0093743]
[1767398452113,0.06666344,90005.0,90001.0,0.0093743]
[1767398452692,0.01111061,90004.0,90001.0,0.0093743]
[1767398453256,0.06666269,90006.0,90001.0,0.0093743]
[1767398453486,0.01111037,90006.0,90001.0,0.0093743]
[1767398453696,0.01111012,90008.0,90002.0,0.01111086]
[1767398453910,0.01111024,90007.0,90001.0,0.0093743]
[1767398454274,0.01111037,90006.0,90001.0,0.02048528]
[1767398454474,0.01111024,90007.0,90001.0,0.02048528]
[1767398454888,0.01111024,90007.0,90003.0,0.01111074]
[1767398455091,0.01111024,90007.0,90001.0,0.01937405]
[1767398455342,0.01111,90009.0,90003.0,0.01111074]
[1767398455489,0.01110987,90010.0,90003.0,0.01111074]
[1767398455490,0.01110987,90010.0,90007.0,0.000999]
[1767398455670,0.01111,90009.0,90008.0,0.01112]
[1767398455881,0.04732402,90006.0,90001.0,0.06666544]
[1767398456132,0.01111024,90007.0,90002.0,0.01112]
[1767398456506,0.01111049,90005.0,90002.0,0.01112]
[1767398456679,0.04732402,90004.0,90003.0,0.01112]
[1767398457050,0.01111024,90007.0,90004.0,0.000999]
[1767398457249,0.01111037,90006.0,90003.0,0.01112]
[1767398460537,0.02538432,90007.0,90003.0,0.01112]
[1767398460701,0.01111024,90007.0,90003.0,0.01112]
[1767398461291,0.01111012,90008.0,90003.0,0.01112]
[1767398462337,0.01111024,90007.0,90003.0,0.02223074]
[1767398462566,0.01111012,90008.0,90003.0,0.02223074]
[1767398462745,0.01111012,90008.0,90003.0,0.01112]
[1767398462746,0.01111024,90007.0,90003.0,0.01112]
[1767398463165,0.01111024,90007.0,90004.0,0.01112]
[1767398464610,0.01111012,90008.0,90004.0,0.01112]
[1767398464935,0.01111024,90007.0,90004.0,0.01112]
[1767398467291,0.01111,90009.0,90007.0,0.000999]
[1767398468020,0.01111,90009.0,90004.0,0.02223061]
[1767398468214,0.05554935,90011.0,90005.0,0.01111049]
[1767398468586,0.06665816,90012.0,90010.0,0.000999]
[1767398468587,0.01110962,90012.0,90010.0,0.000999]
[1767398468804,0.01038592,90011.0,90010.0,0.000999]
[1767398469006,0.02149567,90011.0,90006.0,0.01111037]
[1767398469206,0.01110975,90011.0,90007.0,0.01111024]
[1767398469418,0.01110975,90011.0,90006.0,0.01111037]
[1767398469737,0.01110975,90011.0,90005.0,0.01111049]
[1767398470240,0.01110962,90012.0,90006.0,0.01111037]
[1767398470455,0.0214959,90011.0,90006.0,0.01111037]
[1767398470602,0.01110962,90012.0,90007.0,0.01111024]
[1767398470803,0.01034485,90011.0,90007.0,0.01111024]
[1767398471003,0.01110962,90012.0,90007.0,0.01111024]
[1767398471205,0.0111095,90013.0,90008.0,0.01111012]
[1767398472737,0.0111095,90013.0,90009.0,0.01111]
[1767398472986,0.01110913,90016.0,90013.0,0.000999]
[1767398473243,0.11960861,90027.0,90010.0,0.01110987]
[1767398473244,0.08092539,90021.0,90011.0,0.02222975]
[1767398473372,0.0666527,90019.0,90011.0,0.07777804]
[1767398473733,0.01110901,90017.0,90012.0,0.01110962]
[1767398473930,0.01110925,90015.0,90011.0,0.01112]
[1767398474227,0.01110938,90014.0,90011.0,0.01112]
[1767398474685,0.01147007,90015.0,90011.0,0.01112]
[1767398474893,0.01110938,90014.0,90011.0,0.01112]
[1767398475095,0.00036082,90015.0,90011.0,0.01112]
[1767398475298,0.00036082,90015.0,90012.0,0.01110962]
[1767398475717,0.00036082,90015.0,90011.0,0.02222975]
[1767398475917,0.00036082,90015.0,90011.0,0.01112]
[1767398476729,0.01147007,90015.0,90011.0,0.01112]
[1767398477696,0.01110938,90014.0,90011.0,0.01112]
[1767398478535,0.01147007,90015.0,90011.0,0.01112]
[1767398478935,0.00036082,90015.0,90011.0,0.02222975]
[1767398479138,0.00036082,90015.0,90012.0,0.01110962]
[1767398479334,0.01110864,90020.0,90012.0,0.06665731]
[1767398479594,0.01110839,90022.0,90011.0,0.02222975]
[1767398479595,0.01110839,90022.0,90017.0,0.01110901]
[1767398479924,0.01110851,90021.0,90016.0,0.01110913]
[1767398480138,0.01110839,90022.0,90016.0,0.01110913]
[1767398480574,0.01110851,90021.0,90016.0,0.01110913]
[1767398480775,0.01110851,90021.0,90015.0,0.01110925]
[1767398481182,0.01110876,90019.0,90014.0,0.01110938]
[1767398481377,0.01427408,90018.0,90014.0,0.01110938]
[1767398481583,0.01427408,90018.0,90015.0,0.01110925]
[1767398481805,0.01110864,90020.0,90014.0,0.01110938]
[1767398482705,0.01110888,90018.0,90013.0,0.0111095]
[1767398482910,0.01110864,90020.0,90013.0,0.0111095]
[1767398483391,0.01110851,90021.0,90015.0,0.01110925]
[1767398483527,0.01110851,90021.0,90016.0,0.01110913]
[1767398483735,0.01110851,90021.0,90015.0,0.01110925]
[1767398483736,0.01427408,90020.0,90018.0,0.08952669]
[1767398483942,0.01427408,90024.0,90020.0,0.01110864]
[1767398484366,0.0111079,90026.0,90019.0,0.01112]
[1767398484367,0.000999,90020.0,90019.0,0.01112]
[1767398484576,0.00010818,90020.0,90019.0,0.01112]
[1767398485074,0.01438226,90020.0,90019.0,0.01112]
[1767398485274,0.01438226,90020.0,90019.0,0.010121]
[1767398485474,0.01438226,90020.0,90019.0,1e-08]
[1767398486135,0.0111095,90013.0,90007.0,0.01111024]
[1767398486334,0.01110962,90012.0,90005.0,0.01111049]
[1767398486551,0.01110975,90011.0,90008.0,0.01112]
[1767398486690,0.01427408,90014.0,90008.0,0.01112]
[1767398486891,0.02538346,90014.0,90011.0,0.000999]
[1767398487333,0.05554753,90013.0,90008.0,0.01112]
[1767398487540,0.01110962,90012.0,90008.0,0.01112]
[1767398487745,0.01110938,90014.0,90008.0,0.02223012]
[1767398487944,0.02538358,90013.0,90008.0,0.02223012]
[1767398488202,0.01427408,90013.0,90008.0,0.02223012]
[1767398488777,0.05554814,90012.0,90006.0,0.01111037]
[1767398488942,0.01110962,90012.0,90009.0,0.01112]
[1767398491674,0.01110962,90012.0,90009.0,0.01889]
[1767398492115,0.0111095,90013.0,90009.0,0.01889]
[1767398492297,0.01427408,90014.0,90009.0,0.03]
[1767398492717,0.01327508,90014.0,90010.0,0.01110987]
[1767398492876,0.01110888,90018.0,90010.0,0.01110987]
[1767398493079,0.01110913,90016.0,90010.0,0.01110987]
[1767398493293,0.01327508,90015.0,90010.0,0.01110987]
[1767398493488,0.01327508,90015.0,90012.0,0.01110962]
[1767398493689,0.02438421,90016.0,90011.0,0.01110975]
[1767398493890,0.02438421,90016.0,90010.0,0.01110987]
[1767398494091,0.02438421,90016.0,90011.0,0.01110975]
[1767398494345,0.02438421,90016.0,90010.0,0.01110987]
[1767398495542,0.01110925,90015.0,90010.0,0.01110987]
[1767398495767,0.02438446,90014.0,90009.0,0.01889]
[1767398495992,0.01110962,90012.0,90009.0,0.01889]
[1767398496485,0.0111095,90013.0,90009.0,0.01889]
[1767398496684,0.09526807,90013.0,90009.0,0.03]
[1767398496888,0.16192561,90013.0,90009.0,0.01889]
[1767398497113,0.01110962,90012.0,90009.0,0.01889]
[1767398497313,0.10637757,90013.0,90009.0,0.01889]
[1767398498312,0.0111095,90013.0,90009.0,0.01889]
[1767398498514,0.07993156,90014.0,90009.0,0.03]
[1767398498697,0.0111095,90013.0,90009.0,0.01889]
[1767398499098,0.01110962,90012.0,90009.0,0.01889]
[1767398499537,0.0111095,90013.0,90009.0,0.01889]
[1767398499714,0.01110962,90012.0,90009.0,0.01889]
[1767398499931,0.0111095,90013.0,90009.0,0.01889]
[1767398500177,0.02438446,90014.0,90009.0,0.01889]
[1767398500360,0.01327508,90014.0,90009.0,0.03]
[1767398500561,0.01327508,90014.0,90010.0,0.01110987]
[1767398500699,0.01327508,90014.0,90009.0,0.03]
[1767398500909,0.01327508,90014.0,90010.0,0.01110987]
[1767398501363,0.01327508,90014.0,90009.0,0.03]
[1767398501517,0.01327508,90014.0,90010.0,0.01110987]
[1767398501728,0.01327508,90014.0,90009.0,0.03]
[1767398502309,0.01327508,90014.0,90011.0,0.01110975]
[1767398502517,0.02438409,90017.0,90011.0,0.01110975]
[1767398502746,0.02438409,90017.0,90010.0,0.01110987]
[1767398502945,0.01110913,90016.0,90011.0,0.01110975]
[1767398503147,0.02438433,90015.0,90010.0,0.01110987]
[1767398503806,0.01327508,90015.0,90011.0,0.01110975]
[1767398504116,0.01327508,90015.0,90010.0,0.01110987]
[1767398504519,0.01327508,90015.0,90011.0,0.01110975]
[1767398505487,0.01327508,90015.0,90012.0,0.01110962]
[1767398505687,0.01327508,90016.0,90012.0,0.01110962]
[1767398505908,0.01327508,90016.0,90013.0,0.0111095]
[1767398506113,0.01327508,90017.0,90013.0,0.0111095]
[1767398506559,0.00010818,90020.0,90017.0,0.01110901]
[1767398506719,0.01121682,90020.0,90016.0,0.01112]
[1767398507108,0.01121682,90020.0,90016.0,0.01107589]
[1767398507912,0.01110876,90019.0,90016.0,0.01007689]
[1767398508753,0.01121682,90020.0,90016.0,0.01007689]
[1767398508927,0.01110876,90019.0,90016.0,0.01007689]
[1767398509253,0.06665302,90019.0,90016.0,0.01007689]
[1767398509642,0.01110876,90019.0,90016.0,0.01007689]
[1767398510233,0.01110888,90018.0,90013.0,0.0111095]
[1767398510437,0.01110888,90018.0,90016.0,0.01112]
[1767398510885,0.01110876,90019.0,90016.0,0.01112]
[1767398511031,0.0667606,90020.0,90019.0,0.000999]
[1767398511694,0.01121682,90020.0,90016.0,0.01112]
[1767398512099,0.01110876,90019.0,90016.0,0.01112]
[1767398514568,0.06665305,90019.0,90016.0,0.01112]
[1767398514740,0.05554493,90018.0,90016.0,0.01112]
[1767398515781,0.06665305,90019.0,90016.0,0.01112]
[1767398516391,0.0555448,90018.0,90016.0,0.01112]
[1767398517608,0.06665305,90019.0,90016.0,0.01112]
[1767398518559,0.06665305,90019.0,90016.0,0.00283885]
[1767398519881,0.06565405,90019.0,90016.0,0.00283885]
[1767398520593,0.01010976,90019.0,90016.0,0.00283885]
[1767398520999,0.01121682,90020.0,90016.0,0.00283885]
[1767398521330,0.01110876,90019.0,90016.0,0.00283885]
[1767398521867,0.01121682,90020.0,90016.0,0.00283885]
[1767398521868,0.00010818,90020.0,90016.0,0.00283885]
[1767398522036,0.00010818,90020.0,90017.0,0.0110649]
[1767398522255,0.00010818,90020.0,90016.0,0.01394798]
[1767398522407,0.00010818,90020.0,90017.0,0.01110901]
[1767398523039,0.00010818,90020.0,90018.0,0.05554444]
[1767398523250,0.00010818,90020.0,90017.0,0.01110901]
[1767398524030,0.00010818,90020.0,90016.0,0.01394798]
[1767398524231,0.00010818,90020.0,90017.0,0.01110901]
[1767398524414,0.00010818,90020.0,90016.0,0.01394798]
[1767398524609,0.00010818,90020.0,90017.0,0.01110901]
[1767398524816,0.01110814,90024.0,90018.0,0.01110888]
[1767398525114,0.01110802,90025.0,90020.0,0.01110864]
[1767398525497,0.01038969,90024.0,90020.0,0.01110864]
[1767398525676,0.01110802,90025.0,90020.0,0.01110864]
[1767398525935,0.01038968,90024.0,90020.0,0.01110864]
[1767398526115,0.0111079,90026.0,90021.0,0.01110851]
[1767398526323,0.01038922,90025.0,90021.0,0.01110851]
[1767398526463,0.0111079,90026.0,90021.0,0.01110851]
[1767398526659,0.01038922,90025.0,90021.0,0.01110851]
[1767398526884,0.01038922,90024.0,90021.0,0.01110851]
[1767398527084,0.0111079,90026.0,90021.0,0.01110851]
[1767398527444,0.01038885,90025.0,90021.0,0.01110851]
[1767398527672,0.0111079,90026.0,90021.0,0.01110851]
[1767398527842,0.01038885,90025.0,90021.0,0.01110851]
[1767398528139,0.0111079,90026.0,90020.0,0.01110864]
[1767398528348,0.01038854,90025.0,90021.0,0.01110851]
[1767398528554,0.0111079,90026.0,90022.0,0.01110839]
[1767398528689,0.06592918,90025.0,90015.0,0.06665551]
[1767398528889,0.12374674,90021.0,90013.0,0.06665683]
[1767398529137,0.12374674,90021.0,90013.0,0.0111095]
[1767398529138,0.0110669,90020.0,90013.0,0.0111095]
[1767398529522,0.0110669,90020.0,90013.0,0.06665656]
[1767398530109,0.01110851,90021.0,90016.0,0.01394798]
[1767398530729,0.01110864,90020.0,90016.0,0.00283885]
[1767398530928,0.01110864,90020.0,90016.0,0.01394798]
[1767398531335,0.01110864,90020.0,90017.0,0.01112]
[1767398531740,0.06665093,90022.0,90017.0,0.01112]
[1767398531741,0.01110839,90022.0,90017.0,0.01112]
[1767398532391,0.01110839,90022.0,90017.0,0.02222901]
[1767398532728,0.01110802,90025.0,90017.0,0.07777364]
[1767398532929,0.01038818,90024.0,90017.0,0.01112]
[1767398533152,0.01110827,90023.0,90017.0,0.01395077]
[1767398533609,0.01110814,90024.0,90017.0,0.01395077]
[1767398534215,6.18e-05,90021.0,90017.0,0.01395077]
[1767398534703,6.18e-05,90021.0,90018.0,0.01110888]
[1767398534833,6.18e-05,90021.0,90017.0,0.00284176]
[1767398535173,6.18e-05,90021.0,90017.0,0.01395077]
[1767398535777,0.01110864,90020.0,90017.0,0.00284176]
[1767398535981,6.18e-05,90021.0,90017.0,0.01395077]
[1767398536751,0.01117031,90021.0,90017.0,0.00284176]
[1767398537061,6.18e-05,90021.0,90017.0,0.01395077]
[1767398537274,0.01117031,90021.0,90017.0,0.00284176]
[1767398537464,6.18e-05,90021.0,90017.0,0.01395077]
[1767398538085,6.18e-05,90021.0,90018.0,0.01110888]
[1767398539556,0.11270003,90021.0,90018.0,0.01112]
[1767398539778,6.18e-05,90021.0,90018.0,0.10344431]
[1767398540088,6.18e-05,90021.0,90018.0,0.01110888]
[1767398543892,6.18e-05,90021.0,90019.0,0.05554382]
[1767398545095,6.18e-05,90021.0,90018.0,0.01110888]
[1767398546571,6.18e-05,90021.0,90017.0,0.06493309]
[1767398546772,6.18e-05,90021.0,90017.0,0.0642126]
[1767398546907,6.18e-05,90021.0,90018.0,0.01110888]
[1767398547107,6.18e-05,90021.0,90019.0,0.05554382]
[1767398547882,0.01110802,90025.0,90020.0,0.01110864]
[1767398548181,0.0103912,90024.0,90021.0,0.01110851]
[1767398548419,0.0111079,90026.0,90021.0,0.01110851]
[1767398548595,0.01039158,90025.0,90022.0,0.01110839]
[1767398548854,0.01039158,90025.0,90021.0,0.01110851]
[1767398548855,0.01110703,90033.0,90026.0,0.05553936]
[1767398549054,0.01039219,90032.0,90027.0,0.01110777]
[1767398549287,0.01039219,90031.0,90027.0,0.01110777]
[1767398549490,0.01110703,90033.0,90027.0,0.01010877]
[1767398549704,0.02149743,90032.0,90027.0,0.01010877]
[1767398549915,0.01039027,90031.0,90027.0,0.01010877]
[1767398550113,0.01110716,90032.0,90027.0,0.01010877]
[1767398550319,0.02149622,90031.0,90026.0,0.0111079]
[1767398550483,0.01110728,90031.0,90026.0,0.0111079]
[1767398550881,0.01110703,90033.0,90026.0,0.0111079]
[1767398551156,0.0214961,90032.0,90027.0,0.01110777]
[1767398551358,0.01110716,90032.0,90027.0,0.01110777]
[1767398551773,0.01110728,90031.0,90026.0,0.0111079]
[1767398551989,0.01110691,90034.0,90026.0,0.12489597]
[1767398552205,0.11960861,90032.0,90031.0,0.000999]
[1767398552412,0.11960861,90032.0,90024.0,0.01112]
[1767398552413,0.01110777,90027.0,90024.0,0.01112]
[1767398552629,0.06664706,90027.0,90024.0,0.010121]
[1767398552807,0.05554012,90025.0,90024.0,0.010121]
[1767398553008,0.11919333,90020.0,90018.0,0.01112]
[1767398553209,0.01110876,90019.0,90018.0,0.01112]
[1767398558695,0.01110876,90019.0,90018.0,0.00284082]
[1767398559809,0.01110876,90019.0,90018.0,0.00276871]
[1767398560207,0.06664006,90021.0,90018.0,0.00276871]
[1767398563759,0.06564106,90021.0,90018.0,0.00276871]
[1767398563983,0.01110839,90022.0,90018.0,0.00276871]
[1767398564181,0.01110851,90021.0,90018.0,0.00276871]
[1767398565993,0.01110851,90021.0,90018.0,0.00176971]
[1767398566198,0.05554358,90020.0,90018.0,0.00176971]
[1767398567131,0.06665159,90021.0,90018.0,0.00176971]
[1767398569117,0.06670763,90021.0,90018.0,0.00176971]
[1767398570832,0.06670763,90021.0,90015.0,0.01110925]
[1767398570833,0.01110864,90020.0,90017.0,0.01112]
[1767398571045,0.01017051,90020.0,90017.0,0.01112]
[1767398572908,0.06571415,90020.0,90017.0,0.01112]
[1767398573125,0.05554443,90019.0,90017.0,0.010121]
[1767398574684,0.06571415,90020.0,90017.0,0.010121]
[1767398575300,0.06567271,90020.0,90017.0,0.010121]
[1767398575860,0.05554421,90019.0,90017.0,0.010121]
[1767398576063,5.604e-05,90021.0,90019.0,0.000999]
[1767398576266,5.604e-05,90021.0,90017.0,0.02123001]
[1767398576674,5.604e-05,90021.0,90018.0,0.01110888]
[1767398576876,0.01110728,90031.0,90024.0,0.01110814]
[1767398577113,0.01110728,90031.0,90025.0,0.01110802]
[1767398577314,0.0111074,90030.0,90025.0,0.01110802]
[1767398577676,0.06664337,90032.0,90030.0,0.000943]
[1767398577884,0.01110716,90032.0,90030.0,0.000943]
[1767398578075,0.01110716,90032.0,90027.0,0.01110777]
[1767398578327,0.01110728,90031.0,90025.0,0.01110802]
[1767398578439,0.0111074,90030.0,90025.0,0.01110802]
[1767398578842,0.01110728,90031.0,90024.0,0.06664845]
[1767398578843,0.01110728,90031.0,90026.0,0.0111079]
[1767398579088,0.01010828,90031.0,90027.0,0.11378807]
[1767398579293,0.01010828,90031.0,90026.0,0.0111079]
[1767398580005,0.01110716,90032.0,90027.0,0.01110777]
[1767398580206,0.01110728,90031.0,90026.0,0.0111079]
[1767398580440,0.01110716,90032.0,90027.0,0.01110777]
[1767398580631,0.01110703,90033.0,90027.0,0.01110777]
[1767398580832,0.02222691,90034.0,90028.0,0.01110765]
[1767398581044,0.01110703,90033.0,90028.0,0.01110765]
[1767398581484,0.01110728,90031.0,90026.0,0.0111079]
[1767398581659,0.01110728,90031.0,90025.0,0.01110802]
[1767398581660,0.0111074,90030.0,90025.0,0.01110802]
[1767398581863,0.01110753,90029.0,90022.0,0.06664991]
[1767398582003,0.01110753,90029.0,90023.0,0.01110827]
[1767398582233,0.01110728,90031.0,90025.0,0.01110802]
[1767398582444,0.01110716,90032.0,90027.0,0.01110777]
[1767398583106,0.01112,90034.0,90028.0,0.05553827]
[1767398583511,0.01110703,90033.0,90027.0,0.14276826]
[1767398583708,0.01110703,90033.0,90027.0,0.01110777]
[1767398584709,0.01112,90034.0,90027.0,0.01110777]
[1767398584913,0.01110716,90032.0,90027.0,0.01110777]
[1767398585118,0.01110716,90032.0,90026.0,0.06664682]
[1767398585119,0.0111074,90030.0,90026.0,0.0111079]
[1767398585322,0.01110728,90031.0,90026.0,0.0111079]
[1767398586210,0.01110716,90032.0,90027.0,0.01110777]
[1767398587003,0.01110716,90032.0,90026.0,0.0111079]
[1767398587202,0.06664126,90035.0,90026.0,0.06664716]
[1767398587406,0.06664126,90035.0,90027.0,0.13166049]
[1767398587611,0.01110691,90034.0,90028.0,0.05553827]
[1767398587809,0.01110703,90033.0,90028.0,0.01110765]
[1767398588104,0.01110691,90034.0,90029.0,0.01110753]
[1767398588307,0.01110703,90033.0,90028.0,0.14276814]
[1767398588505,0.01110691,90034.0,90029.0,0.01110753]
[1767398588923,0.01110629,90039.0,90033.0,0.01110703]
[1767398589281,0.01110642,90038.0,90035.0,0.13166049]
[1767398589489,0.06663754,90040.0,90034.0,0.01110691]
[1767398589490,0.01110617,90040.0,90034.0,0.01110691]
[1767398589636,0.01110629,90039.0,90034.0,0.1427674]
[1767398589864,0.01110629,90039.0,90032.0,0.01110716]
[1767398589865,0.01110642,90038.0,90032.0,0.01110716]
[1767398590075,0.01110629,90039.0,90034.0,0.1427674]
[1767398590212,0.01110642,90038.0,90034.0,0.13166049]
[1767398590427,0.01110617,90040.0,90034.0,0.1427674]
[1767398590679,0.01110642,90038.0,90034.0,0.13166049]
[1767398591470,0.01110629,90039.0,90034.0,0.1427674]
[1767398592070,0.01110629,90039.0,90035.0,0.13166049]
[1767398592874,0.01110642,90038.0,90035.0,0.13166049]
[1767398593208,0.01110642,90038.0,90033.0,0.01110703]
[1767398593504,0.01110642,90038.0,90033.0,0.14276752]
[1767398593854,0.01110642,90038.0,90033.0,0.13166049]
[1767398594098,0.01110642,90038.0,90033.0,0.14276752]
[1767398594305,0.01110654,90037.0,90033.0,0.13166049]
[1767398594507,0.01110629,90039.0,90033.0,0.13166049]
[1767398594508,0.01110629,90039.0,90033.0,0.14276752]
[1767398594974,0.01110642,90038.0,90033.0,0.14276752]
[1767398595507,0.01110654,90037.0,90033.0,0.13166049]
[1767398596122,0.01110642,90038.0,90033.0,0.14276752]
[1767398596458,0.01110642,90038.0,90034.0,0.13166049]
[1767398596655,0.01110629,90039.0,90034.0,0.1427674]
[1767398596876,0.01110617,90040.0,90034.0,0.1427674]
[1767398597082,0.01110642,90038.0,90034.0,0.13166049]
[1767398597423,0.01110629,90039.0,90034.0,0.1427674]
[1767398597841,0.01110629,90039.0,90034.0,0.13166049]
[1767398598276,0.01110617,90040.0,90034.0,0.1427674]
[1767398598684,0.01110629,90039.0,90035.0,0.13166049]
[1767398598843,0.01110642,90038.0,90035.0,0.13166049]
[1767398599609,0.01110629,90039.0,90035.0,0.13166049]